fUSD/lending_fUSD_20251224
["ID","MTS","AMOUNT","RATE_DAILY","PERIOD"]
[399610428,1766544649951,-500.0,0.000279,2]
[399610429,1766544649961,-500.0,0.000279,2]
[399610430,1766544649971,-500.0,0.000279,2]
[399610431,1766544649981,-500.0,0.000279,2]
[399610432,1766544649991,-500.0,0.000279,2]
[399610433,1766544650001,-500.0,0.000279,2]
[399610434,1766544650012,-500.0,0.000279,2]
[399610435,1766544650022,-500.0,0.000279,2]
[399610436,1766544650032,-500.0,0.000279,2]
[399610437,1766544650042,-500.0,0.000279,2]
[399610438,1766544650051,-500.0,0.000279,2]
[399610439,1766544650061,-500.0,0.000279,2]
[399610440,1766544650076,-500.0,0.000279,2]
[399610441,1766544650086,-500.0,0.000279,2]
[399610442,1766544650096,-500.0,0.000279,2]
[399610443,1766544650106,-500.0,0.000279,2]
[399610444,1766544650116,-500.0,0.000279,2]
[399610445,1766544650126,-500.0,0.000279,2]
[399610446,1766544650135,-500.0,0.000279,2]
[399610447,1766544650145,-500.0,0.000279,2]
[399610448,1766544650155,-500.0,0.000279,2]
[399610449,1766544650165,-500.0,0.000279,2]
[399610450,1766544650175,-500.0,0.000279,2]
[399610451,1766544650185,-500.0,0.000279,2]
[399610452,1766544650195,-500.0,0.000279,2]
[399610453,1766544650205,-500.0,0.000279,2]
[399610454,1766544650216,-500.0,0.000279,2]
[399610455,1766544650227,-500.0,0.000279,2]
[399610456,1766544650237,-500.0,0.000279,2]
[399610457,1766544650248,-500.0,0.000279,2]
[399610458,1766544650258,-500.0,0.000279,2]
[399610459,1766544650268,-500.0,0.000279,2]
[399610460,1766544650279,-500.0,0.000279,2]
[399610461,1766544650290,-500.0,0.000279,2]
[399610462,1766544650301,-500.0,0.000279,2]
[399610463,1766544650312,-500.0,0.000279,2]
[399610464,1766544650324,-500.0,0.000279,2]
[399610465,1766544650336,-500.0,0.000279,2]
[399610466,1766544650346,-436.87559846,0.000279,2]
[399610467,1766544650356,-1955.07891498,0.000279,2]
[399610468,1766544650367,-1500.0,0.00027972,2]
[399610469,1766544650377,-691.66768229,0.00028,60]
[399610470,1766544650387,-151.33873241,0.00028117,2]
[399610471,1766544650398,-386.87667747,0.00028156,2]
[399610472,1766544650408,-2884.74,0.0002839,2]
[399610473,1766544650424,-164.17,0.00028493,2]
[399610474,1766544650435,-1500.0,0.00028571,2]
[399610475,1766544650445,-150.0,0.00028623,2]
[399610476,1766544650456,-671.20407632,0.00028623,2]
[399610477,1766544650467,-150.0,0.00028623,2]
[399610478,1766544650478,-7372.63462582,0.00028623,2]
[399610479,1766544650488,-986.5,0.00028835,10]
[399610480,1766544650499,-152.0,0.00028906,3]
[399610481,1766544650510,-3458.0,0.00028983,2]
[399610482,1766544650521,-612.0,0.00028983,2]
[399610483,1766544650532,-1326.0,0.00028983,2]
[399610484,1766544650543,-1609.0,0.00028983,2]
[399610485,1766544650553,-409.0,0.00028983,2]
[399610486,1766544650564,-1263.0,0.00028983,2]
[399610487,1766544650574,-1198.0,0.00028983,2]
[399610488,1766544650584,-315.022,0.00028983,2]
[399610489,1766544650594,-4807.0,0.00028983,2]
[399610490,1766544650604,-2430.0,0.00028983,2]
[399610491,1766544650615,-550.0,0.00029,2]
[399610492,1766544650625,-211.90100682,0.00029029,2]
[399610493,1766544650637,-2884.74,0.00029157,2]
[399610494,1766544650647,-1474.2,0.0002918,2]
[399610495,1766544650658,-2000.0,0.000292,2]
[399610496,1766544650668,-505.25,0.00029221,120]
[399610497,1766544650678,-38239.4,0.00029221,2]
[399610498,1766544650688,-1500.0,0.00029371,2]
[399610499,1766544650698,-1500.0,0.00029471,2]
[399610500,1766544650709,-6378.77,0.000295,7]
[399610501,1766544650719,-151.33873241,0.00029523,2]
[399610502,1766544650730,-401.19111454,0.00029525,2]
[399610503,1766544650744,-249.78,0.00029829,2]
[399610504,1766544650755,-1500.0,0.0002987,2]
[399610505,1766544650766,-1500.0,0.0002997,2]
[399610506,1766544650777,-154.29092657,0.00029997,7]
[399610507,1766544650788,-505.25,0.00029999,120]
[399610508,1766544650798,-505.25,0.00029999,120]
[399610509,1766544650810,-505.25,0.00029999,120]
[399610510,1766544650820,-505.25,0.00029999,120]
[399610511,1766544650829,-250.0,0.0003,30]
[399610512,1766544650838,-947580.24,0.0003,2]
[399610513,1766544650848,-250.0,0.0003,30]
[399610514,1766544650859,-534.0,0.0003,14]
[399610515,1766544650870,-155.0,0.0003,14]
[399610516,1766544650879,-151.0,0.0003,7]
[399610517,1766544650888,-151.0,0.0003,7]
[399610518,1766544650898,-151.0,0.0003,7]
[399610519,1766544650908,-151.0,0.0003,7]
[399610520,1766544650917,-281.481644,0.0003,7]
[399610521,1766544650927,-151.0,0.0003,2]
[399610522,1766544650939,-151.0,0.0003,7]
[399610523,1766544650950,-185.166085,0.0003,7]
[399610524,1766544650961,-151.0,0.0003,7]
[399610525,1766544650973,-151.0,0.0003,7]
[399610526,1766544650985,-151.0,0.0003,7]
[399610527,1766544650996,-151.00002,0.0003,7]
[399610528,1766544651006,-151.0,0.0003,7]
[399610529,1766544651016,-151.0,0.0003,7]
[399610530,1766544651027,-151.0,0.0003,7]
[399610531,1766544651037,-151.0,0.0003,7]
[399610532,1766544651047,-151.0,0.0003,7]
[399610533,1766544651057,-685.135947,0.0003,7]
[399610534,1766544651068,-685.135947,0.0003,7]
[399610535,1766544651078,-685.135947,0.0003,7]
[399610536,1766544651087,-685.135947,0.0003,7]
[399610537,1766544651097,-151.0,0.0003,7]
[399610538,1766544651107,-151.0,0.0003,7]
[399610539,1766544651117,-1500.0,0.0003007,2]
[399610540,1766544651127,-456.29445349,0.000301,2]
[399610541,1766544651137,-948.02,0.00030137,2]
[399610542,1766544651147,-7162.978,0.00030137,30]
[399610543,1766544651157,-449.7,0.000302,30]
[399610544,1766544651167,-534.0,0.00030411,14]
[399610545,1766544651177,-152.0,0.00030543,4]
[399610546,1766544651187,-416.03518578,0.00030894,2]
[399610547,1766544651197,-151.33873241,0.00030929,2]
[399610548,1766544651207,-1500.0,0.00030969,2]
[399610549,1766544651216,-250.0,0.00031,30]
[399610550,1766544651228,-600.0,0.00031,2]
[399610551,1766544651237,-1474.2,0.00031121,2]
[399610552,1766544651248,-163.21355269,0.00031443,2]
[399610553,1766544651257,-1075.15443169,0.00031448,4]
[399610554,1766544651268,-185.19,0.00031507,120]
[399610555,1766544651279,-1500.0,0.00031568,2]
[399610556,1766544651289,-155.0,0.00031644,14]
[399610557,1766544651299,-534.0,0.00031644,14]
[399610558,1766544651309,-3458.0,0.00031983,2]
[399610559,1766544651319,-612.0,0.00031983,2]
[399610560,1766544651329,-1326.0,0.00031983,2]
[399610561,1766544651339,-1609.0,0.00031983,2]
[399610562,1766544651348,-409.0,0.00031983,2]
[399610563,1766544651357,-1263.0,0.00031983,2]
[399610564,1766544651366,-1198.0,0.00031983,2]
[399610565,1766544651375,-4807.0,0.00031983,2]
[399610566,1766544651385,-2430.0,0.00031983,2]
[399610567,1766544651394,-390.0,0.00032,30]
[399610568,1766544651404,-152.0,0.0003218,5]
[399610569,1766544651414,-6378.77,0.000322,7]
[399610570,1766544651424,-431.42848765,0.00032263,2]
[399610571,1766544651434,-151.33873241,0.00032335,2]
[399610572,1766544651444,-500.0,0.00032466,2]
[399610573,1766544651454,-1500.0,0.00032468,2]
[399610574,1766544651464,-449.7,0.000327,30]
[399610575,1766544651474,-1500.0,0.00032867,2]
[399610576,1766544651483,-500.0,0.00032876,2]
[399610577,1766544651493,-500.0,0.00032876,2]
[399610578,1766544651503,-500.0,0.00032876,2]
[399610579,1766544651514,-500.0,0.00032876,2]
[399610580,1766544651523,-500.0,0.00032876,2]
[399610581,1766544651533,-500.0,0.00032876,2]
[399610582,1766544651542,-500.0,0.00032876,2]
[399610583,1766544651552,-500.0,0.00032876,2]
[399610584,1766544651561,-500.0,0.00032876,2]
[399610585,1766544651571,-500.0,0.00032876,2]
[399610586,1766544651581,-500.0,0.00032876,2]
[399610587,1766544651590,-500.0,0.00032876,2]
[399610588,1766544651600,-420.88291463,0.00032876,2]
[399610589,1766544651610,-500.0,0.00032876,2]
[399610590,1766544651619,-500.0,0.00032876,2]
[399610591,1766544651629,-500.0,0.00032876,2]
[399610592,1766544651640,-500.0,0.00032876,2]
[399610593,1766544651650,-500.0,0.00032876,2]
[399610594,1766544651661,-500.0,0.00032876,2]
[399610595,1766544651671,-500.0,0.00032876,2]
[399610596,1766544651681,-500.0,0.00032876,2]
[399610597,1766544651691,-500.0,0.00032876,2]
[399610598,1766544651701,-500.0,0.00032876,2]
[399610599,1766544651711,-500.0,0.00032876,2]
[399610600,1766544651721,-500.0,0.00032876,2]
[399610601,1766544651732,-500.0,0.00032876,2]
[399610602,1766544651745,-355.60597649,0.00032876,2]
[399610603,1766544651755,-508.14693858,0.00032876,2]
[399610604,1766544651765,-500.0,0.00032876,2]
[399610605,1766544651776,-500.0,0.00032876,2]
[399610606,1766544651787,-500.0,0.00032876,2]
[399610607,1766544651797,-500.0,0.00032876,2]
[399610608,1766544651806,-500.0,0.00032876,2]
[399610609,1766544651817,-500.0,0.00032876,2]
[399610610,1766544651826,-500.0,0.00032876,2]
[399610611,1766544651836,-500.0,0.00032876,2]
[399610612,1766544651846,-500.0,0.00032876,2]
[399610613,1766544651856,-500.0,0.00032876,2]
[399610614,1766544651866,-500.0,0.00032876,2]
[399610615,1766544651876,-500.0,0.00032876,2]
[399610616,1766544651886,-500.0,0.00032876,2]
[399610617,1766544651895,-500.0,0.00032876,2]
[399610618,1766544651905,-500.0,0.00032876,2]
[399610619,1766544651915,-500.0,0.00032876,2]
[399610620,1766544651924,-500.0,0.00032876,2]
[399610621,1766544651933,-614.57301928,0.00032876,2]
[399610622,1766544651944,-352.35,0.00032876,2]
[399610623,1766544651951,-352.35,0.00032876,2]
[399610624,1766544651959,-352.35,0.00032876,2]
[399610625,1766544651969,-352.35,0.00032876,2]
[399610626,1766544651979,-352.35,0.00032876,2]
[399610627,1766544651989,-352.35,0.00032876,2]
[399610628,1766544651999,-352.35,0.00032876,2]
[399610629,1766544652008,-352.35,0.00032876,2]
[399610630,1766544652018,-352.35,0.00032876,2]
[399610631,1766544652027,-352.35,0.00032876,2]
[399610632,1766544652037,-352.35,0.00032876,2]
[399610633,1766544652047,-352.35,0.00032876,2]
[399610634,1766544652056,-352.35,0.00032876,2]
[399610635,1766544652066,-352.35,0.00032876,2]
[399610636,1766544652076,-352.35,0.00032876,2]
[399610637,1766544652086,-352.35,0.00032876,2]
[399610638,1766544652096,-352.35,0.00032876,2]
[399610639,1766544652106,-352.35,0.00032876,2]
[399610640,1766544652116,-352.35,0.00032876,2]
[399610641,1766544652126,-352.35,0.00032876,2]
[399610642,1766544652136,-352.35,0.00032876,2]
[399610643,1766544652146,-352.35,0.00032876,2]
[399610644,1766544652156,-352.35,0.00032876,2]
[399610645,1766544652166,-352.42184057,0.00032876,2]
[399610646,1766544652176,-500.0,0.00032876,2]
[399610647,1766544652186,-500.0,0.00032876,2]
[399610648,1766544652197,-500.0,0.00032876,2]
[399610649,1766544652207,-500.0,0.00032876,2]
[399610650,1766544652218,-500.0,0.00032876,2]
[399610651,1766544652229,-500.54569857,0.00032876,2]
[399610652,1766544652240,-421.36,0.00032876,2]
[399610653,1766544652251,-421.36,0.00032876,2]
[399610654,1766544652262,-421.36,0.00032876,2]
[399610655,1766544652273,-421.36,0.00032876,2]
[399610656,1766544652284,-421.36,0.00032876,2]
[399610657,1766544652294,-421.36,0.00032876,2]
[399610658,1766544652304,-421.36,0.00032876,2]
[399610659,1766544652314,-421.36,0.00032876,2]
[399610660,1766544652324,-421.36,0.00032876,2]
[399610661,1766544652334,-421.36,0.00032876,2]
[399610662,1766544652345,-421.36,0.00032876,2]
[399610663,1766544652355,-421.36,0.00032876,2]
[399610664,1766544652366,-421.36,0.00032876,2]
[399610665,1766544652376,-421.36,0.00032876,2]
[399610666,1766544652386,-421.36,0.00032876,2]
[399610667,1766544652396,-421.36,0.00032876,2]
[399610668,1766544652408,-421.36,0.00032876,2]
[399610669,1766544652419,-421.36,0.00032876,2]
[399610670,1766544652431,-421.36,0.00032876,2]
[399610671,1766544652442,-421.36,0.00032876,2]
[399610672,1766544652454,-421.36,0.00032876,2]
[399610673,1766544652464,-421.36,0.00032876,2]
[399610674,1766544652475,-421.36,0.00032876,2]
[399610675,1766544652486,-421.4740563,0.00032876,2]
[399610676,1766544652496,-3640.67,0.00032876,120]
[399610677,1766544652506,-360.7074777,0.00032876,2]
[399610678,1766544652518,-500.0,0.00032876,2]
[399610679,1766544652528,-500.0,0.00032876,2]
[399610680,1766544652538,-500.0,0.00032876,2]
[399610681,1766544652550,-500.0,0.00032876,2]
[399610682,1766544652560,-500.0,0.00032876,2]
[399610683,1766544652570,-500.0,0.00032876,2]
[399610684,1766544652580,-500.0,0.00032876,2]
[399610685,1766544652589,-1354.75,0.00032876,2]
[399610686,1766544652601,-1354.75,0.00032876,2]
[399610687,1766544652611,-1354.75,0.00032876,2]
[399610688,1766544652621,-1354.75,0.00032876,2]
[399610689,1766544652633,-1354.75,0.00032876,2]
[399610690,1766544652643,-1354.75,0.00032876,2]
[399610691,1766544652653,-1354.75,0.00032876,2]
[399610692,1766544652664,-1354.75,0.00032876,2]
[399610693,1766544652674,-1354.75,0.00032876,2]
[399610694,1766544652685,-1354.75,0.00032876,2]
[399610695,1766544652695,-1354.75,0.00032876,2]
[399610696,1766544652705,-1354.75,0.00032876,2]
[399610697,1766544652715,-1354.75,0.00032876,2]
[399610698,1766544652727,-1354.75,0.00032876,2]
[399610699,1766544652738,-1354.75,0.00032876,2]
[399610700,1766544652750,-1354.75,0.00032876,2]
[399610701,1766544652760,-1354.75,0.00032876,2]
[399610702,1766544652770,-1354.75,0.00032876,2]
[399610703,1766544652779,-1354.75,0.00032876,2]
[399610704,1766544652790,-1354.75,0.00032876,2]
[399610705,1766544652800,-1354.75,0.00032876,2]
[399610706,1766544652810,-1354.75,0.00032876,2]
[399610707,1766544652820,-1354.75,0.00032876,2]
[399610708,1766544652831,-1354.89691833,0.00032876,2]
[399610709,1766544652841,-516.85,0.00032877,2]
[399610710,1766544652851,-151.0,0.00032877,31]
[399610711,1766544652861,-152.277053,0.00032877,31]
[399610712,1766544652871,-151.0,0.00032877,31]
[399610713,1766544652882,-151.0,0.00032877,31]
[399610714,1766544652892,-151.0,0.00032877,31]
[399610715,1766544652901,-213.057104,0.00032877,31]
[399610716,1766544652910,-151.0,0.00032877,31]
[399610717,1766544652919,-152.281159,0.00032877,31]
[399610718,1766544652929,-151.0,0.00032877,31]
[399610719,1766544652939,-151.0,0.00032877,31]
[399610720,1766544652949,-151.0,0.00032877,31]
[399610721,1766544652959,-189.111049,0.00032877,31]
[399610722,1766544652969,-221.693175,0.00032877,31]
[399610723,1766544652979,-151.0,0.00032877,31]
[399610724,1766544652990,-151.0,0.00032877,31]
[399610725,1766544653000,-151.0,0.00032877,31]
[399610726,1766544653010,-151.0,0.00032877,31]
[399610727,1766544653020,-151.0,0.00032877,31]
[399610728,1766544653030,-153.944001,0.00032877,31]
[399610729,1766544653040,-151.0,0.00032877,31]
[399610730,1766544653051,-152.341278,0.00032877,31]
[399610731,1766544653061,-151.0,0.00032877,31]
[399610732,1766544653071,-151.94062,0.00032877,31]
[399610733,1766544653082,-151.0,0.00032877,31]
[399610734,1766544653093,-154.08798,0.00032877,31]
[399610735,1766544653103,-151.0,0.00032877,31]
[399610736,1766544653114,-151.549115,0.00032877,31]
[399610737,1766544653124,-151.0,0.00032877,31]
[399610738,1766544653134,-152.716771,0.00032877,31]
[399610739,1766544653144,-151.0,0.00032877,31]
[399610740,1766544653157,-151.0,0.00032877,31]
[399610741,1766544653168,-151.0,0.00032877,31]
[399610742,1766544653178,-151.0,0.00032877,31]
[399610743,1766544653189,-151.0,0.00032877,31]
[399610744,1766544653199,-151.0,0.00032877,31]
[399610745,1766544653209,-151.0,0.00032877,31]
[399610746,1766544653220,-151.0,0.00032877,31]
[399610747,1766544653231,-151.0,0.00032877,31]
[399610748,1766544653243,-152.936295,0.00032877,31]
[399610749,1766544653253,-153.139698,0.00032877,31]
[399610750,1766544653264,-151.0,0.00032877,30]
[399610751,1766544653273,-151.0,0.00032877,30]
[399610752,1766544653283,-153.888151,0.00032877,30]
[399610753,1766544653294,-151.0,0.00032877,31]
[399610754,1766544653304,-151.463468,0.00032877,31]
[399610755,1766544653314,-151.0,0.00032877,10]
[399610756,1766544653324,-151.0,0.00032877,10]
[399610757,1766544653504,-152.309983,0.00032877,10]
[399610758,1766544653562,-151.0,0.00032877,31]
[399610759,1766544653572,-151.0,0.00032877,31]
[399610760,1766544653583,-153.55988,0.00032877,31]
[399610761,1766544653593,-151.0,0.00032877,31]
[399610762,1766544653604,-151.0,0.00032877,31]
[399610763,1766544653614,-151.0,0.00032877,31]
[399610764,1766544653624,-151.0,0.00032877,31]
[399610765,1766544653635,-151.0,0.00032877,31]
[399610766,1766544653646,-151.0,0.00032877,31]
[399610767,1766544653657,-151.0,0.00032877,31]
[399610768,1766544653668,-151.0,0.00032877,31]
[399610769,1766544653679,-151.0,0.00032877,31]
[399610770,1766544653689,-185.362398,0.00032877,31]
[399610771,1766544653699,-151.0,0.00032877,31]
[399610772,1766544653709,-151.0,0.00032877,31]
[399610773,1766544653719,-151.0,0.00032877,31]
[399610774,1766544653731,-151.0,0.00032877,31]
[399610775,1766544653743,-152.331422,0.00032877,31]
[399610776,1766544653754,-152.465963,0.00032877,31]
[399610777,1766544653765,-151.0,0.00032877,31]
[399610778,1766544653776,-151.0,0.00032877,31]
[399610779,1766544653788,-178.462669,0.00032877,31]
[399610780,1766544653799,-151.0,0.00032877,31]
[399610781,1766544653809,-152.849894,0.00032877,31]
[399610782,1766544653822,-151.0,0.00032877,31]
[399610783,1766544653833,-152.986667,0.00032877,31]
[399610784,1766544653844,-151.0,0.00032877,31]
[399610785,1766544653855,-151.0,0.00032877,31]
[399610786,1766544653866,-151.0,0.00032877,31]
[399610787,1766544653876,-151.0,0.00032877,31]
[399610788,1766544653893,-154.291819,0.00032877,31]
[399610789,1766544653904,-151.0,0.00032877,31]
[399610790,1766544653916,-151.0,0.00032877,31]
[399610791,1766544653931,-151.0,0.00032877,31]
[399610792,1766544653942,-151.0,0.00032877,31]
[399610793,1766544653952,-151.0,0.00032877,31]
[399610794,1766544653963,-151.0,0.00032877,31]
[399610795,1766544653974,-151.0,0.00032877,31]
[399610796,1766544653984,-151.0,0.00032877,31]
[399610797,1766544653995,-151.0,0.00032877,31]
[399610798,1766544654006,-151.0,0.00032877,31]
[399610799,1766544654017,-151.0,0.00032877,31]
[399610800,1766544654028,-151.0,0.00032877,31]
[399610801,1766544654039,-151.0,0.00032877,31]
[399610802,1766544654050,-151.0,0.00032877,31]
[399610803,1766544654060,-151.0,0.00032877,31]
[399610804,1766544654072,-151.0,0.00032877,31]
[399610805,1766544654082,-151.0,0.00032877,31]
[399610806,1766544654094,-153.757642,0.00032877,31]
[399610807,1766544654104,-151.0,0.00032877,31]
[399610808,1766544654115,-203.295681,0.00032877,31]
[399610809,1766544654126,-151.0,0.00032877,31]
[399610810,1766544654137,-151.0,0.00032877,31]
[399610811,1766544654147,-151.0,0.00032877,31]
[399610812,1766544654157,-151.0,0.00032877,31]
[399610813,1766544654167,-287.802169,0.00032877,31]
[399610814,1766544654178,-287.802169,0.00032877,31]
[399610815,1766544654188,-287.802169,0.00032877,31]
[399610816,1766544654199,-287.802169,0.00032877,31]
[399610817,1766544654209,-287.802169,0.00032877,31]
[399610818,1766544654219,-287.802169,0.00032877,31]
[399610819,1766544654230,-151.0,0.00032877,31]
[399610820,1766544654240,-151.0,0.00032877,31]
[399610821,1766544654251,-287.802169,0.00032877,31]
[399610822,1766544654261,-287.802169,0.00032877,31]
[399610823,1766544654272,-151.0,0.00032877,31]
[399610824,1766544654282,-151.0,0.00032877,31]
[399610825,1766544654292,-167.19744,0.00032877,31]
[399610826,1766544654303,-151.0,0.00032877,31]
[399610827,1766544654313,-153.442587,0.00032877,31]
[399610828,1766544654323,-151.0,0.00032877,31]
[399610829,1766544654334,-151.0,0.00032877,31]
[399610830,1766544654344,-151.0,0.00032877,31]
[399610831,1766544654354,-151.0,0.00032877,31]
[399610832,1766544654367,-151.0,0.00032877,31]
[399610833,1766544654377,-151.0,0.00032877,31]
[399610834,1766544654388,-151.0,0.00032877,31]
[399610835,1766544654399,-151.0,0.00032877,31]
[399610836,1766544654409,-151.0,0.00032877,31]
[399610837,1766544654419,-151.0,0.00032877,31]
[399610838,1766544654429,-151.0,0.00032877,31]
[399610839,1766544654440,-151.0,0.00032877,31]
[399610840,1766544654451,-153.192149,0.00032877,31]
[399610841,1766544654460,-151.0,0.00032877,31]
[399610842,1766544654471,-153.487297,0.00032877,31]
[399610843,1766544654481,-151.0,0.00032877,31]
[399610844,1766544654491,-151.0,0.00032877,31]
[399610845,1766544654502,-151.0,0.00032877,31]
[399610846,1766544654513,-151.0,0.00032877,31]
[399610847,1766544654524,-151.0,0.00032877,31]
[399610848,1766544654534,-151.0,0.00032877,31]
[399610849,1766544654545,-151.0,0.00032877,31]
[399610850,1766544654560,-152.556167,0.00032877,31]
[399610851,1766544654571,-151.351272,0.00032877,31]
[399610852,1766544654582,-151.0,0.00032877,31]
[399610853,1766544654592,-151.0,0.00032877,31]
[399610854,1766544654602,-151.0,0.00032877,31]
[399610855,1766544654612,-152.766261,0.00032877,31]
[399610856,1766544654623,-151.0,0.00032877,31]
[399610857,1766544654634,-151.0,0.00032877,31]
[399610858,1766544654644,-227.719341,0.00032877,31]
[399610859,1766544654655,-151.0,0.00032877,31]
[399610860,1766544654664,-151.0,0.00032877,31]
[399610861,1766544654674,-151.0,0.00032877,31]
[399610862,1766544654684,-182.76084,0.00032877,31]
[399610863,1766544654694,-151.0,0.00032877,31]
[399610864,1766544654703,-151.0,0.00032877,31]
[399610865,1766544654713,-151.0,0.00032877,31]
[399610866,1766544654724,-154.073971,0.00032877,31]
[399610867,1766544654737,-151.0,0.00032877,31]
[399610868,1766544654748,-151.0,0.00032877,31]
[399610869,1766544654758,-151.0,0.00032877,31]
[399610870,1766544654768,-151.0,0.00032877,31]
[399610871,1766544654780,-151.0,0.00032877,31]
[399610872,1766544654790,-151.0,0.00032877,31]
[399610873,1766544654800,-151.0,0.00032877,31]
[399610874,1766544654810,-151.0,0.00032877,31]
[399610875,1766544654825,-151.0,0.00032877,31]
[399610876,1766544654836,-151.0,0.00032877,31]
[399610877,1766544654846,-151.0,0.00032877,31]
[399610878,1766544654857,-151.0,0.00032877,31]
[399610879,1766544654867,-154.690361,0.00032877,31]
[399610880,1766544654876,-173.003297,0.00032877,31]
[399610881,1766544654887,-151.0,0.00032877,30]
[399610882,1766544654898,-151.0,0.00032877,30]
[399610883,1766544654908,-151.0,0.00032877,31]
[399610884,1766544654918,-151.0,0.00032877,30]
[399610885,1766544654929,-151.0,0.00032877,31]
[399610886,1766544654940,-151.0,0.00032877,30]
[399610887,1766544654953,-151.0,0.00032877,31]
[399610888,1766544654968,-151.0,0.00032877,31]
[399610889,1766544654978,-151.0,0.00032877,31]
[399610890,1766544654988,-153.800413,0.00032877,31]
[399610891,1766544654998,-151.0,0.00032877,31]
[399610892,1766544655008,-151.0,0.00032877,31]
[399610893,1766544655019,-151.0,0.00032877,31]
[399610894,1766544655029,-151.0,0.00032877,31]
[399610895,1766544655039,-151.0,0.00032877,31]
[399610896,1766544655049,-153.728828,0.00032877,31]
[399610897,1766544655059,-151.0,0.00032877,31]
[399610898,1766544655069,-151.0,0.00032877,31]
[399610899,1766544655079,-151.0,0.00032877,31]
[399610900,1766544655089,-151.0,0.00032877,31]
[399610901,1766544655099,-213.501936,0.00032877,31]
[399610902,1766544655108,-151.0,0.00032877,31]
[399610903,1766544655119,-151.0,0.00032877,31]
[399610904,1766544655128,-151.0,0.00032877,31]
[399610905,1766544655139,-151.0,0.00032877,31]
[399610906,1766544655148,-151.0,0.00032877,31]
[399610907,1766544655158,-151.0,0.00032877,31]
[399610908,1766544655168,-151.0,0.00032877,31]
[399610909,1766544655178,-151.0,0.00032877,31]
[399610910,1766544655188,-151.0,0.00032877,31]
[399610911,1766544655198,-151.0,0.00032877,31]
[399610912,1766544655208,-151.0,0.00032877,31]
[399610913,1766544655218,-151.0,0.00032877,31]
[399610914,1766544655228,-151.0,0.00032877,31]
[399610915,1766544655239,-151.0,0.00032877,31]
[399610916,1766544655249,-151.0,0.00032877,31]
[399610917,1766544655259,-151.0,0.00032877,31]
[399610918,1766544655269,-151.0,0.00032877,31]
[399610919,1766544655279,-154.889231,0.00032877,31]
[399610920,1766544655290,-154.889231,0.00032877,31]
[399610921,1766544655300,-154.889231,0.00032877,31]
[399610922,1766544655311,-154.889231,0.00032877,31]
[399610923,1766544655320,-154.889231,0.00032877,31]
[399610924,1766544655331,-154.889231,0.00032877,31]
[399610925,1766544655341,-154.889231,0.00032877,31]
[399610926,1766544655351,-154.889231,0.00032877,31]
[399610927,1766544655361,-163.344111,0.00032877,31]